[Event "*** Titled Tuesday Blitz"]
[Site "Chess.com"]
[Date "2020.11.10"]
[Round "4"]
[White "klimkoj"]
[Black "ambaixador"]
[Result "0-1"]
[WhiteElo "2626"]
[BlackElo "2456"]
[TimeControl "180+1"]
[EndTime "10:43:04 PST"]
[Termination "ambaixador won on time"]

1. e4 {[%clk 0:03:00.9]} 1... c6 {[%clk 0:02:59.5]} 2. d4 {[%clk 0:03:00.2]}
2... d5 {[%clk 0:03:00.4]} 3. exd5 {[%clk 0:03:00.6]} 3... cxd5 {[%clk
0:03:00.4]} 4. c4 {[%clk 0:03:01.1]} 4... Nf6 {[%clk 0:03:00.6]} 5. Nc3 {[%clk
0:03:01.1]} 5... Nc6 {[%clk 0:03:00.7]} 6. Bg5 {[%clk 0:03:00.9]} 6... g6 {[%clk
0:02:35.4]} 7. Bxf6 {[%clk 0:02:52.2]} 7... exf6 {[%clk 0:02:36.3]} 8. cxd5
{[%clk 0:02:52.1]} 8... Ne7 {[%clk 0:02:31.9]} 9. Bc4 {[%clk 0:02:49.8]} 9...
Bg7 {[%clk 0:02:31]} 10. Nge2 {[%clk 0:02:48.8]} 10... O-O {[%clk 0:02:30.5]}
11. O-O {[%clk 0:02:48.5]} 11... a6 {[%clk 0:02:30.7]} 12. a4 {[%clk 0:02:44.2]}
12... b6 {[%clk 0:02:24.5]} 13. Nf4 {[%clk 0:02:27.8]} 13... Bb7 {[%clk
0:02:23.7]} 14. Re1 {[%clk 0:02:27.1]} 14... Nf5 {[%clk 0:01:50.3]} 15. Qd2
{[%clk 0:02:06.6]} 15... Rc8 {[%clk 0:01:42.2]} 16. Ba2 {[%clk 0:02:05]} 16...
Nd6 {[%clk 0:01:33]} 17. Qd3 {[%clk 0:02:01.4]} 17... Qc7 {[%clk 0:01:23.8]} 18.
g3 {[%clk 0:01:44.8]} 18... Rfd8 {[%clk 0:01:22.5]} 19. Ng2 {[%clk 0:01:43.2]}
19... f5 {[%clk 0:00:59.2]} 20. Re2 {[%clk 0:01:31.7]} 20... Nc4 {[%clk
0:00:54.7]} 21. Ne3 {[%clk 0:01:21.1]} 21... Nxb2 {[%clk 0:00:51.6]} 22. Rxb2
{[%clk 0:01:18.9]} 22... Qxc3 {[%clk 0:00:51.6]} 23. Qxc3 {[%clk 0:01:11.4]}
23... Rxc3 {[%clk 0:00:52.5]} 24. Rd1 {[%clk 0:01:11.2]} 24... Rd6 {[%clk
0:00:37.1]} 25. Rb4 {[%clk 0:00:45.2]} 25... h6 {[%clk 0:00:30.6]} 26. Rdb1
{[%clk 0:00:31.1]} 26... Rd3 {[%clk 0:00:28.9]} 27. Rxb6 {[%clk 0:00:27.6]}
27... Rxb6 {[%clk 0:00:19.9]} 28. Rxb6 {[%clk 0:00:28.5]} 28... Bxd4 {[%clk
0:00:16.4]} 29. Rxb7 {[%clk 0:00:27.1]} 29... Bxe3 {[%clk 0:00:16.6]} 30. d6
{[%clk 0:00:17.3]} 30... Rd1+ {[%clk 0:00:14.2]} 31. Kg2 {[%clk 0:00:17.2]}
31... Rd2 {[%clk 0:00:15.1]} 32. Bxf7+ {[%clk 0:00:16.6]} 32... Kg7 {[%clk
0:00:14.9]} 33. Bc4+ {[%clk 0:00:12.5]} 33... Kf6 {[%clk 0:00:13.9]} 34. Kf3
{[%clk 0:00:12.1]} 34... Bxf2 {[%clk 0:00:13.4]} 35. Rf7+ {[%clk 0:00:11.6]}
35... Ke5 {[%clk 0:00:12.9]} 36. d7 {[%clk 0:00:11.8]} 36... Bc5 {[%clk
0:00:12.5]} 37. Bxa6 {[%clk 0:00:09.5]} 37... Bb6 {[%clk 0:00:12.1]} 38. Bb5
{[%clk 0:00:09.2]} 38... Ke6 {[%clk 0:00:12.3]} 39. Rg7 {[%clk 0:00:07.8]} 39...
Kf6 {[%clk 0:00:10.7]} 40. Rg8 {[%clk 0:00:06.7]} 40... g5 {[%clk 0:00:10.9]}
41. g4 {[%clk 0:00:06.2]} 41... f4 {[%clk 0:00:10.6]} 42. Re8 {[%clk 0:00:04.4]}
42... Kf7 {[%clk 0:00:09.4]} 43. Re2 {[%clk 0:00:03]} 43... Rxe2 {[%clk
0:00:08.4]} 44. Kxe2 {[%clk 0:00:03.4]} 44... Ke7 {[%clk 0:00:09.2]} 45. Kf3
{[%clk 0:00:03.5]} 45... Ba5 {[%clk 0:00:09.6]} 46. h3 {[%clk 0:00:03.5]} 46...
Bd8 {[%clk 0:00:10]} 47. Ke4 {[%clk 0:00:03.2]} 47... Ba5 {[%clk 0:00:10.5]} 48.
Kd5 {[%clk 0:00:02.9]} 48... Bd8 {[%clk 0:00:10.5]} 49. Kc6 {[%clk 0:00:02.6]}
49... f3 {[%clk 0:00:09.9]} 50. Kb7 {[%clk 0:00:01.8]} 50... f2 {[%clk
0:00:10.2]} 0-1

[Event "*** Titled Tuesday Blitz"]
[Site "Chess.com"]
[Date "2020.11.10"]
[Round "4"]
[White "Make_it_shine060"]
[Black "Atousa1"]
[Result "0-1"]
[WhiteElo "2196"]
[BlackElo "2412"]
[TimeControl "180+1"]
[EndTime "10:43:04 PST"]
[Termination "Atousa1 won by resignation"]

1. d4 {[%clk 0:03:00.9]} 1... Nf6 {[%clk 0:02:57.1]} 2. c4 {[%clk 0:02:59]} 2...
e6 {[%clk 0:02:57.2]} 3. Nf3 {[%clk 0:02:58.2]} 3... d5 {[%clk 0:02:55.9]} 4.
Nc3 {[%clk 0:02:57.2]} 4... Be7 {[%clk 0:02:56]} 5. Bg5 {[%clk 0:02:52.4]} 5...
O-O {[%clk 0:02:56.1]} 6. Qc2 {[%clk 0:02:51.7]} 6... Nbd7 {[%clk 0:02:54.3]} 7.
cxd5 {[%clk 0:02:50.7]} 7... exd5 {[%clk 0:02:54.3]} 8. e3 {[%clk 0:02:49.5]}
8... c6 {[%clk 0:02:54.6]} 9. Bd3 {[%clk 0:02:48.2]} 9... Re8 {[%clk 0:02:55.2]}
10. O-O {[%clk 0:02:47.6]} 10... Nf8 {[%clk 0:02:55.7]} 11. h3 {[%clk
0:02:44.2]} 11... Be6 {[%clk 0:02:53.6]} 12. Rab1 {[%clk 0:02:41.7]} 12... a5
{[%clk 0:02:53]} 13. a3 {[%clk 0:02:40.4]} 13... N6d7 {[%clk 0:02:53.2]} 14.
Bxe7 {[%clk 0:02:37]} 14... Qxe7 {[%clk 0:02:54.1]} 15. b4 {[%clk 0:02:36.6]}
15... axb4 {[%clk 0:02:54]} 16. axb4 {[%clk 0:02:35.6]} 16... Qf6 {[%clk
0:02:54.9]} 17. Nd2 {[%clk 0:02:25.2]} 17... Ng6 {[%clk 0:02:55]} 18. b5 {[%clk
0:02:22.2]} 18... Nh4 {[%clk 0:02:55]} 19. Ne2 {[%clk 0:02:15.3]} 19... Bf5
{[%clk 0:01:53.2]} 20. Bxf5 {[%clk 0:02:11.8]} 20... Nxf5 {[%clk 0:01:54.1]} 21.
bxc6 {[%clk 0:02:04.9]} 21... bxc6 {[%clk 0:01:55]} 22. Rb7 {[%clk 0:02:01.9]}
22... Nf8 {[%clk 0:01:50.5]} 23. Rc1 {[%clk 0:01:47.7]} 23... Rac8 {[%clk
0:01:46.2]} 24. Rb6 {[%clk 0:01:45.8]} 24... Ne7 {[%clk 0:01:38.4]} 25. Nb3
{[%clk 0:01:28.7]} 25... Nd7 {[%clk 0:01:32.6]} 26. Rb7 {[%clk 0:01:25.4]} 26...
Nf8 {[%clk 0:01:29.2]} 27. Nf4 {[%clk 0:01:21.9]} 27... Nfg6 {[%clk 0:01:24]}
28. Nxg6 {[%clk 0:01:18.7]} 28... hxg6 {[%clk 0:01:24.9]} 29. Na5 {[%clk
0:01:17.1]} 29... Red8 {[%clk 0:01:12.5]} 30. Rb6 {[%clk 0:01:13.9]} 30... Rd6
{[%clk 0:01:12.6]} 31. Qb3 {[%clk 0:00:58.5]} 31... Kh7 {[%clk 0:01:10.4]} 32.
Rb8 {[%clk 0:00:53.9]} 32... Rdd8 {[%clk 0:01:04.2]} 33. Rxc8 {[%clk 0:00:51.8]}
33... Rxc8 {[%clk 0:01:05.1]} 34. Qb7 {[%clk 0:00:48.2]} 34... Qd6 {[%clk
0:01:00.2]} 35. Rb1 {[%clk 0:00:33.9]} 35... c5 {[%clk 0:00:53.5]} 36. Rb6
{[%clk 0:00:30.5]} 36... Qd8 {[%clk 0:00:53.5]} 37. Nc6 {[%clk 0:00:19.6]} 37...
Nxc6 {[%clk 0:00:44.1]} 38. Rxc6 {[%clk 0:00:18.6]} 38... Rxc6 {[%clk 0:00:45]}
39. Qxc6 {[%clk 0:00:18.1]} 39... c4 {[%clk 0:00:45.9]} 40. g3 {[%clk
0:00:16.4]} 40... f6 {[%clk 0:00:46.2]} 41. Kg2 {[%clk 0:00:16.4]} 41... g5
{[%clk 0:00:44.3]} 42. Kh2 {[%clk 0:00:12.8]} 42... Qa5 {[%clk 0:00:43.7]} 43.
Qc8 {[%clk 0:00:12.3]} 43... Qd2 {[%clk 0:00:34.2]} 44. Qf5+ {[%clk 0:00:10.9]}
44... Kh8 {[%clk 0:00:32.5]} 45. Qxd5 {[%clk 0:00:10.9]} 45... Qxf2+ {[%clk
0:00:32.1]} 46. Kh1 {[%clk 0:00:11.3]} 46... Qf1+ {[%clk 0:00:29.7]} 47. Kh2
{[%clk 0:00:10.5]} 47... Qe2+ {[%clk 0:00:25.5]} 48. Kh1 {[%clk 0:00:09.3]}
48... c3 {[%clk 0:00:20.5]} 49. Qa8+ {[%clk 0:00:08.8]} 49... Kh7 {[%clk
0:00:20.9]} 50. Qe4+ {[%clk 0:00:09.6]} 50... Kh6 {[%clk 0:00:21.4]} 51. Qc6
{[%clk 0:00:07.6]} 51... c2 {[%clk 0:00:18]} 52. h4 {[%clk 0:00:08.2]} 52...
Qd1+ {[%clk 0:00:15.9]} 53. Kh2 {[%clk 0:00:07.6]} 53... c1=Q {[%clk 0:00:15.8]}
54. hxg5+ {[%clk 0:00:07.7]} 54... Kxg5 {[%clk 0:00:12.1]} 55. Qd5+ {[%clk
0:00:07]} 55... Kh6 {[%clk 0:00:10.3]} 56. Qf5 {[%clk 0:00:06.4]} 56... Qh5+
{[%clk 0:00:10.1]} 57. Qxh5+ {[%clk 0:00:05.3]} 57... Kxh5 {[%clk 0:00:11]} 0-1

[Event "*** Titled Tuesday Blitz"]
[Site "Chess.com"]
[Date "2020.11.10"]
[Round "4"]
[White "emperor87"]
[Black "PriSachu"]
[Result "1-0"]
[WhiteElo "2717"]
[BlackElo "2516"]
[TimeControl "180+1"]
[EndTime "10:43:06 PST"]
[Termination "emperor87 won by resignation"]

1. d4 {[%clk 0:03:00.9]} 1... Nf6 {[%clk 0:02:59.6]} 2. c4 {[%clk 0:03:00.5]}
2... g6 {[%clk 0:03:00.1]} 3. Nc3 {[%clk 0:03:00.8]} 3... Bg7 {[%clk 0:03:00.7]}
4. e4 {[%clk 0:03:01.1]} 4... O-O {[%clk 0:03:01.3]} 5. Be2 {[%clk 0:03:01.3]}
5... c6 {[%clk 0:02:59.2]} 6. Be3 {[%clk 0:02:53.1]} 6... d5 {[%clk 0:02:57.5]}
7. e5 {[%clk 0:02:52.8]} 7... Ne4 {[%clk 0:02:57.2]} 8. f4 {[%clk 0:02:44.5]}
8... Nxc3 {[%clk 0:02:26.3]} 9. bxc3 {[%clk 0:02:45.4]} 9... dxc4 {[%clk
0:02:21.4]} 10. h4 {[%clk 0:02:39.2]} 10... Qa5 {[%clk 0:02:10.4]} 11. Rc1
{[%clk 0:02:36.6]} 11... Qxa2 {[%clk 0:02:06.4]} 12. h5 {[%clk 0:02:36.1]} 12...
Bf5 {[%clk 0:02:04.4]} 13. Nf3 {[%clk 0:02:26.5]} 13... Nd7 {[%clk 0:01:59.4]}
14. Nd2 {[%clk 0:02:23]} 14... Nb6 {[%clk 0:01:40.2]} 15. Kf2 {[%clk 0:02:17.5]}
15... Rad8 {[%clk 0:01:34.7]} 16. g4 {[%clk 0:02:15.5]} 16... Bd3 {[%clk
0:01:33.1]} 17. Ra1 {[%clk 0:02:11.1]} 17... Qb2 {[%clk 0:01:28.1]} 18. Rc1
{[%clk 0:02:06.7]} 18... Nd5 {[%clk 0:01:24]} 19. Bxd3 {[%clk 0:02:03.2]} 19...
cxd3 {[%clk 0:01:24.9]} 20. Qf3 {[%clk 0:01:45.4]} 20... Nxc3 {[%clk 0:01:19.8]}
21. Rxc3 {[%clk 0:01:35.9]} 21... Qxc3 {[%clk 0:01:18.6]} 22. Qh3 {[%clk
0:01:36]} 22... g5 {[%clk 0:01:08.7]} 23. h6 {[%clk 0:01:33.1]} 23... Bh8 {[%clk
0:00:51.3]} 24. Qh5 {[%clk 0:00:58]} 24... f6 {[%clk 0:00:50.7]} 25. Nf3 {[%clk
0:00:56.7]} 25... c5 {[%clk 0:00:30.8]} 26. d5 {[%clk 0:00:24.7]} 26... Rxd5
{[%clk 0:00:25.3]} 27. Nxg5 {[%clk 0:00:22.6]} 27... fxg5 {[%clk 0:00:22.7]} 28.
Qxg5+ {[%clk 0:00:14]} 28... Kf7 {[%clk 0:00:23.2]} 29. Qf5+ {[%clk 0:00:14.2]}
29... Ke8 {[%clk 0:00:22.7]} 30. Qc8+ {[%clk 0:00:14.1]} 30... Rd8 {[%clk
0:00:23.2]} 31. Qxb7 {[%clk 0:00:14.2]} 31... Bxe5 {[%clk 0:00:18.1]} 32. Qc6+
{[%clk 0:00:14.2]} 32... Kf7 {[%clk 0:00:18.5]} 33. f5 {[%clk 0:00:12.3]} 33...
d2 {[%clk 0:00:17.6]} 34. Qe6+ {[%clk 0:00:11.4]} 34... Ke8 {[%clk 0:00:17.7]}
35. Qc6+ {[%clk 0:00:11.4]} 35... Rd7 {[%clk 0:00:17.6]} 36. Rb1 {[%clk
0:00:08.3]} 36... d1=Q {[%clk 0:00:15.1]} 37. Rxd1 {[%clk 0:00:06.2]} 37... Qc2+
{[%clk 0:00:14.2]} 38. Rd2 {[%clk 0:00:06.4]} 38... Bd4 {[%clk 0:00:12.7]} 39.
Rxc2 {[%clk 0:00:04.6]} 39... Bxe3+ {[%clk 0:00:13.2]} 40. Kxe3 {[%clk 0:00:05]}
40... Rf6 {[%clk 0:00:13.8]} 41. Qb5 {[%clk 0:00:04.3]} 41... Kf7 {[%clk
0:00:14.7]} 42. Qxd7 {[%clk 0:00:03.5]} 42... Rd6 {[%clk 0:00:15.6]} 43. Qxd6
{[%clk 0:00:03.4]} 43... exd6 {[%clk 0:00:15.5]} 44. g5 {[%clk 0:00:04.3]} 44...
d5 {[%clk 0:00:14.9]} 45. Kf4 {[%clk 0:00:05.2]} 45... d4 {[%clk 0:00:15.8]} 46.
Rb2 {[%clk 0:00:06.1]} 46... d3 {[%clk 0:00:16.1]} 47. Rb7+ {[%clk 0:00:07]}
47... Ke8 {[%clk 0:00:15.4]} 48. Rb1 {[%clk 0:00:06.5]} 48... c4 {[%clk
0:00:16.3]} 49. Ke3 {[%clk 0:00:07.2]} 49... Kd7 {[%clk 0:00:15.6]} 50. Kd4
{[%clk 0:00:07.4]} 50... Kd6 {[%clk 0:00:16.5]} 51. g6 {[%clk 0:00:07.2]} 51...
d2 {[%clk 0:00:17.4]} 52. gxh7 {[%clk 0:00:06.7]} 52... c3 {[%clk 0:00:17.2]}
53. Kxc3 {[%clk 0:00:06.3]} 53... d1=Q {[%clk 0:00:16.4]} 54. Rxd1+ {[%clk
0:00:06.1]} 1-0

[Event "*** Titled Tuesday Blitz"]
[Site "Chess.com"]
[Date "2020.11.10"]
[Round "4"]
[White "elcandado"]
[Black "xLuring1"]
[Result "1/2-1/2"]
[WhiteElo "2600"]
[BlackElo "2348"]
[TimeControl "180+1"]
[EndTime "10:43:08 PST"]
[Termination "Game drawn by repetition"]

1. d4 {[%clk 0:03:00.9]} 1... f5 {[%clk 0:02:59.7]} 2. Bf4 {[%clk 0:03:01]} 2...
Nf6 {[%clk 0:02:59.5]} 3. e3 {[%clk 0:03:00.8]} 3... d6 {[%clk 0:02:59.8]} 4.
Nc3 {[%clk 0:02:58.8]} 4... e6 {[%clk 0:02:53.2]} 5. Nf3 {[%clk 0:02:53.8]} 5...
Be7 {[%clk 0:02:52.9]} 6. h3 {[%clk 0:02:53.6]} 6... O-O {[%clk 0:02:49.9]} 7.
Bd3 {[%clk 0:02:53.2]} 7... Nc6 {[%clk 0:02:43.2]} 8. a3 {[%clk 0:02:49]} 8...
Qe8 {[%clk 0:02:35.9]} 9. Bh2 {[%clk 0:02:45.6]} 9... Bd8 {[%clk 0:02:32.6]} 10.
Qe2 {[%clk 0:02:34.2]} 10... e5 {[%clk 0:02:23.9]} 11. dxe5 {[%clk 0:02:28.1]}
11... dxe5 {[%clk 0:02:21.6]} 12. Bb5 {[%clk 0:02:27.4]} 12... e4 {[%clk
0:02:09]} 13. Ne5 {[%clk 0:02:22.6]} 13... a6 {[%clk 0:02:01.8]} 14. Nxc6 {[%clk
0:02:14.6]} 14... bxc6 {[%clk 0:01:49.5]} 15. Bc4+ {[%clk 0:02:01.9]} 15... Be6
{[%clk 0:01:48.8]} 16. O-O {[%clk 0:01:58.5]} 16... Kh8 {[%clk 0:01:48.1]} 17.
Bxa6 {[%clk 0:01:43.8]} 17... Qf7 {[%clk 0:01:43.7]} 18. b3 {[%clk 0:01:32.7]}
18... Nd7 {[%clk 0:01:33.8]} 19. Bb7 {[%clk 0:01:27.7]} 19... Ra5 {[%clk
0:01:19.7]} 20. Bxc6 {[%clk 0:01:15]} 20... Rc5 {[%clk 0:01:17.1]} 21. Bxd7
{[%clk 0:01:13.9]} 21... Qxd7 {[%clk 0:01:06.2]} 22. Na4 {[%clk 0:01:06.4]}
22... Rd5 {[%clk 0:01:05.9]} 23. Rad1 {[%clk 0:01:01.9]} 23... Bf6 {[%clk
0:01:01.9]} 24. Nc5 {[%clk 0:00:57.5]} 24... Qe7 {[%clk 0:00:58.6]} 25. Nxe6
{[%clk 0:00:56.9]} 25... Qxe6 {[%clk 0:00:59.1]} 26. Qc4 {[%clk 0:00:55.2]}
26... c6 {[%clk 0:00:57.4]} 27. a4 {[%clk 0:00:46.2]} 27... g5 {[%clk
0:00:53.7]} 28. a5 {[%clk 0:00:39.1]} 28... Bg7 {[%clk 0:00:51.7]} 29. a6 {[%clk
0:00:38]} 29... f4 {[%clk 0:00:51.8]} 30. a7 {[%clk 0:00:35.4]} 30... Qd7 {[%clk
0:00:47.4]} 31. Rxd5 {[%clk 0:00:32.8]} 31... cxd5 {[%clk 0:00:47.4]} 32. Qa6
{[%clk 0:00:31.2]} 32... Ra8 {[%clk 0:00:39.5]} 33. exf4 {[%clk 0:00:29.1]}
33... Rxa7 {[%clk 0:00:38]} 34. Qb6 {[%clk 0:00:28.5]} 34... gxf4 {[%clk
0:00:34.8]} 35. Bxf4 {[%clk 0:00:28.1]} 35... Ra8 {[%clk 0:00:34.1]} 36. Rd1
{[%clk 0:00:26.4]} 36... d4 {[%clk 0:00:30.3]} 37. Be3 {[%clk 0:00:21.2]} 37...
d3 {[%clk 0:00:18.8]} 38. cxd3 {[%clk 0:00:20.3]} 38... exd3 {[%clk 0:00:18.6]}
39. b4 {[%clk 0:00:19.8]} 39... h6 {[%clk 0:00:15.3]} 40. Bxh6 {[%clk 0:00:18]}
40... Kh7 {[%clk 0:00:12]} 41. Bxg7 {[%clk 0:00:17.4]} 41... Kxg7 {[%clk
0:00:12.9]} 42. Qe3 {[%clk 0:00:15.8]} 42... Rd8 {[%clk 0:00:11.9]} 43. Rd2
{[%clk 0:00:15.3]} 43... Qb5 {[%clk 0:00:11]} 44. Qe4 {[%clk 0:00:14.4]} 44...
Rd7 {[%clk 0:00:10.2]} 45. h4 {[%clk 0:00:13.3]} 45... Kh6 {[%clk 0:00:10.1]}
46. g4 {[%clk 0:00:12.6]} 46... Rd5 {[%clk 0:00:09.1]} 47. g5+ {[%clk
0:00:12.1]} 47... Rxg5+ {[%clk 0:00:09.1]} 48. hxg5+ {[%clk 0:00:11.9]} 48...
Qxg5+ {[%clk 0:00:09.7]} 49. Kh2 {[%clk 0:00:11.3]} 49... Qxd2 {[%clk
0:00:10.3]} 50. Qe6+ {[%clk 0:00:10.9]} 50... Kg5 {[%clk 0:00:10.4]} 51. Qe5+
{[%clk 0:00:09.2]} 51... Kg6 {[%clk 0:00:08.7]} 52. Qe6+ {[%clk 0:00:09.1]}
52... Kg5 {[%clk 0:00:08.8]} 53. Qe5+ {[%clk 0:00:07.8]} 53... Kg6 {[%clk
0:00:09.2]} 54. Qe6+ {[%clk 0:00:07.3]} 54... Kg5 {[%clk 0:00:09.6]} 1/2-1/2

[Event "*** Titled Tuesday Blitz"]
[Site "Chess.com"]
[Date "2020.11.10"]
[Round "4"]
[White "Lady_Nika"]
[Black "Margarita2907"]
[Result "1-0"]
[WhiteElo "2386"]
[BlackElo "2226"]
[TimeControl "180+1"]
[EndTime "10:43:09 PST"]
[Termination "Lady_Nika won on time"]

1. d4 {[%clk 0:03:00.9]} 1... d5 {[%clk 0:02:59.5]} 2. e3 {[%clk 0:02:58.8]}
2... Nf6 {[%clk 0:02:56.8]} 3. f4 {[%clk 0:02:55.9]} 3... e6 {[%clk 0:02:50.5]}
4. Nf3 {[%clk 0:02:55.7]} 4... Bd6 {[%clk 0:02:48.1]} 5. c3 {[%clk 0:02:55.7]}
5... b6 {[%clk 0:02:44.3]} 6. Bd3 {[%clk 0:02:53.4]} 6... Bb7 {[%clk 0:02:43.9]}
7. Nbd2 {[%clk 0:02:53.3]} 7... Nbd7 {[%clk 0:02:43.3]} 8. O-O {[%clk
0:02:53.3]} 8... O-O {[%clk 0:02:42.2]} 9. Ne5 {[%clk 0:02:51.6]} 9... Ne4
{[%clk 0:02:39.6]} 10. Rf3 {[%clk 0:02:45.6]} 10... f6 {[%clk 0:02:37.2]} 11.
Nxd7 {[%clk 0:02:44.9]} 11... Qxd7 {[%clk 0:02:38.1]} 12. Rh3 {[%clk 0:02:44]}
12... f5 {[%clk 0:02:34.4]} 13. Nxe4 {[%clk 0:02:43.1]} 13... dxe4 {[%clk
0:02:32]} 14. Bc4 {[%clk 0:02:38.3]} 14... Bd5 {[%clk 0:02:29]} 15. Bb3 {[%clk
0:02:38.1]} 15... Bxb3 {[%clk 0:02:24]} 16. axb3 {[%clk 0:02:37.7]} 16... a5
{[%clk 0:02:19]} 17. Bd2 {[%clk 0:02:36.6]} 17... c5 {[%clk 0:02:16.4]} 18. Qh5
{[%clk 0:02:23.1]} 18... g6 {[%clk 0:02:11.6]} 19. Qe2 {[%clk 0:02:22.9]} 19...
Qe7 {[%clk 0:02:01.9]} 20. Kh1 {[%clk 0:02:21.8]} 20... Rfd8 {[%clk 0:02:00.5]}
21. Rg1 {[%clk 0:02:20.7]} 21... cxd4 {[%clk 0:01:45.1]} 22. exd4 {[%clk
0:02:17.9]} 22... Qc7 {[%clk 0:01:38.9]} 23. Qf2 {[%clk 0:02:11.5]} 23... a4
{[%clk 0:01:33.6]} 24. bxa4 {[%clk 0:02:08.5]} 24... Rxa4 {[%clk 0:01:32.3]} 25.
Be3 {[%clk 0:02:05.5]} 25... b5 {[%clk 0:01:28.5]} 26. g4 {[%clk 0:01:52.9]}
26... Rd7 {[%clk 0:01:24.9]} 27. gxf5 {[%clk 0:01:52.1]} 27... exf5 {[%clk
0:01:24.3]} 28. Qh4 {[%clk 0:01:50.9]} 28... Rg7 {[%clk 0:01:17.4]} 29. Rhg3
{[%clk 0:01:21.4]} 29... Be7 {[%clk 0:01:11.5]} 30. Qh3 {[%clk 0:01:20.1]} 30...
Bf6 {[%clk 0:01:08.7]} 31. Qf1 {[%clk 0:01:13.1]} 31... Qb7 {[%clk 0:00:58.9]}
32. Qd1 {[%clk 0:01:10]} 32... Ra8 {[%clk 0:00:54.7]} 33. Qb3+ {[%clk
0:01:09.2]} 33... Kh8 {[%clk 0:00:46.8]} 34. R3g2 {[%clk 0:01:03.7]} 34... Rb8
{[%clk 0:00:41.9]} 35. Rd1 {[%clk 0:01:00.1]} 35... Rd7 {[%clk 0:00:34.8]} 36.
Qe6 {[%clk 0:00:58.3]} 36... Bg7 {[%clk 0:00:32.7]} 37. h4 {[%clk 0:00:54.1]}
37... Re7 {[%clk 0:00:26.3]} 38. Qb3 {[%clk 0:00:52.5]} 38... Qc6 {[%clk
0:00:21.6]} 39. d5 {[%clk 0:00:48.8]} 39... Qf6 {[%clk 0:00:20.6]} 40. Rh2
{[%clk 0:00:47.7]} 40... Rd7 {[%clk 0:00:18.2]} 41. h5 {[%clk 0:00:46.2]} 41...
h6 {[%clk 0:00:08]} 42. hxg6 {[%clk 0:00:44.9]} 42... Qxg6 {[%clk 0:00:07.8]}
43. Rg1 {[%clk 0:00:45]} 43... Qf7 {[%clk 0:00:04.8]} 44. Bd4 {[%clk 0:00:42.7]}
44... Bxd4 {[%clk 0:00:04.5]} 45. cxd4 {[%clk 0:00:38.6]} 45... Kh7 {[%clk
0:00:02.8]} 46. Qh3 {[%clk 0:00:37.6]} 46... Rb6 {[%clk 0:00:01.4]} 47. Rg5
{[%clk 0:00:33.6]} 47... Rxd5 {[%clk 0:00:02.3]} 48. Rhg2 {[%clk 0:00:28.7]}
48... Qf6 {[%clk 0:00:00.9]} 49. Rg7+ {[%clk 0:00:25.8]} 49... Qxg7 {[%clk
0:00:01.2]} 50. Rxg7+ {[%clk 0:00:25.6]} 50... Kxg7 {[%clk 0:00:02.1]} 51. Qg2+
{[%clk 0:00:24.5]} 51... Kf7 {[%clk 0:00:02.7]} 52. Qh3 {[%clk 0:00:20.9]} 52...
Rbd6 {[%clk 0:00:03.2]} 53. Qh5+ {[%clk 0:00:20.1]} 53... Ke7 {[%clk 0:00:03.7]}
54. Qh4+ {[%clk 0:00:19]} 1-0

[Event "*** Titled Tuesday Blitz"]
[Site "Chess.com"]
[Date "2020.11.10"]
[Round "4"]
[White "GrigorGrigorov"]
[Black "Oleksandr_Bortnyk"]
[Result "1-0"]
[WhiteElo "2759"]
[BlackElo "2905"]
[TimeControl "180+1"]
[EndTime "10:43:10 PST"]
[Termination "GrigorGrigorov won on time"]

1. d4 {[%clk 0:03:00.9]} 1... d6 {[%clk 0:02:58.6]} 2. Nf3 {[%clk 0:03:00]} 2...
Nf6 {[%clk 0:02:56.5]} 3. c4 {[%clk 0:02:59.8]} 3... g6 {[%clk 0:02:57.1]} 4. g3
{[%clk 0:02:59.7]} 4... Bg7 {[%clk 0:02:57]} 5. Bg2 {[%clk 0:02:59.9]} 5... O-O
{[%clk 0:02:57.8]} 6. O-O {[%clk 0:02:59.9]} 6... Bf5 {[%clk 0:02:58.5]} 7. Nc3
{[%clk 0:02:57.3]} 7... Ne4 {[%clk 0:02:58.7]} 8. Nxe4 {[%clk 0:02:45.8]} 8...
Bxe4 {[%clk 0:02:59.6]} 9. Be3 {[%clk 0:02:46]} 9... c6 {[%clk 0:02:50.9]} 10.
Qd2 {[%clk 0:02:42]} 10... Re8 {[%clk 0:02:50.5]} 11. Rfd1 {[%clk 0:02:41.6]}
11... Nd7 {[%clk 0:02:40.7]} 12. Rac1 {[%clk 0:02:40.7]} 12... a5 {[%clk
0:02:36.2]} 13. Bh6 {[%clk 0:02:38.7]} 13... Bxh6 {[%clk 0:02:29.5]} 14. Qxh6
{[%clk 0:02:37]} 14... Bxf3 {[%clk 0:02:30.4]} 15. Bxf3 {[%clk 0:02:35.5]} 15...
a4 {[%clk 0:02:31.3]} 16. h4 {[%clk 0:02:30.5]} 16... Qa5 {[%clk 0:02:22.9]} 17.
h5 {[%clk 0:02:25.5]} 17... Nf6 {[%clk 0:01:38.6]} 18. hxg6 {[%clk 0:02:24.1]}
18... fxg6 {[%clk 0:01:39.5]} 19. d5 {[%clk 0:02:13.4]} 19... Qb6 {[%clk
0:01:29.7]} 20. Kg2 {[%clk 0:02:03.1]} 20... Qxb2 {[%clk 0:01:23.7]} 21. dxc6
{[%clk 0:02:02.2]} 21... bxc6 {[%clk 0:01:12.4]} 22. Bxc6 {[%clk 0:02:01.6]}
22... Qxe2 {[%clk 0:01:13.1]} 23. Rd2 {[%clk 0:01:55.6]} 23... Qe5 {[%clk
0:01:06.2]} 24. Bxa8 {[%clk 0:01:53.8]} 24... Rxa8 {[%clk 0:01:07.1]} 25. Rcc2
{[%clk 0:01:06.7]} 25... Ra7 {[%clk 0:00:30.3]} 26. Re2 {[%clk 0:01:04.7]} 26...
Qf5 {[%clk 0:00:30.5]} 27. Qe3 {[%clk 0:00:58]} 27... Rc7 {[%clk 0:00:30.2]} 28.
Qf3 {[%clk 0:00:52.6]} 28... Qxf3+ {[%clk 0:00:28]} 29. Kxf3 {[%clk 0:00:52.3]}
29... Kf7 {[%clk 0:00:28.9]} 30. Re3 {[%clk 0:00:43.7]} 30... Nd7 {[%clk
0:00:23.8]} 31. Ra3 {[%clk 0:00:38.2]} 31... Nb6 {[%clk 0:00:23.9]} 32. Ke2
{[%clk 0:00:34]} 32... h5 {[%clk 0:00:20.1]} 33. Kd3 {[%clk 0:00:33.9]} 33...
Nd7 {[%clk 0:00:20.2]} 34. Kd4 {[%clk 0:00:30.8]} 34... Nc5 {[%clk 0:00:19.7]}
35. Rb2 {[%clk 0:00:29.8]} 35... Ke6 {[%clk 0:00:17.6]} 36. Re3+ {[%clk
0:00:28.7]} 36... Kd7 {[%clk 0:00:17.7]} 37. Rb8 {[%clk 0:00:22.8]} 37... e5+
{[%clk 0:00:14.6]} 38. Kc3 {[%clk 0:00:16.4]} 38... Ke7 {[%clk 0:00:13.3]} 39.
Rb6 {[%clk 0:00:13.9]} 39... Nd7 {[%clk 0:00:06.8]} 40. Rb5 {[%clk 0:00:13.1]}
40... Nc5 {[%clk 0:00:07.7]} 41. f4 {[%clk 0:00:12.3]} 41... e4 {[%clk
0:00:08.1]} 42. Kd4 {[%clk 0:00:09.2]} 42... Ke6 {[%clk 0:00:08]} 43. Rb8 {[%clk
0:00:07]} 43... Kf5 {[%clk 0:00:06.2]} 44. Kd5 {[%clk 0:00:06.6]} 44... Nd7
{[%clk 0:00:06.5]} 45. Kxd6 {[%clk 0:00:05.9]} 45... Ra7 {[%clk 0:00:04.3]} 46.
Rb5+ {[%clk 0:00:05.3]} 46... Kg4 {[%clk 0:00:04.8]} 47. Rg5+ {[%clk 0:00:05.3]}
47... Kh3 {[%clk 0:00:05.1]} 48. Rxe4 {[%clk 0:00:04]} 48... Nf6 {[%clk
0:00:04.3]} 49. Re6 {[%clk 0:00:03.8]} 49... Ng4 {[%clk 0:00:03.6]} 50. c5
{[%clk 0:00:02.8]} 50... Kxg3 {[%clk 0:00:03.4]} 51. Rexg6 {[%clk 0:00:02.8]}
51... Kxf4 {[%clk 0:00:03.3]} 52. Rxh5 {[%clk 0:00:02.2]} 52... Ne3 {[%clk
0:00:01.8]} 53. c6 {[%clk 0:00:02.2]} 53... Nc4+ {[%clk 0:00:02]} 54. Kc5 {[%clk
0:00:02.4]} 54... Nb2 {[%clk 0:00:01.1]} 55. Kb5 {[%clk 0:00:02.1]} 55... Nd3
{[%clk 0:00:01.1]} 56. Kb6 {[%clk 0:00:02.3]} 1-0